[Event "Superettan 2017/2018"]
[Site "Vegagatan 20, Gothenburg, Sweden"]
[Date "2018.02.03"]
[Round "2.15"]
[White "Borvander, Tom"]
[Black "Fransson, Patrick"]
[Result "0-1"]
[TimeControl "90 minutes for 40 moves + 30 minutes for the rest of the game + 30 seconds per move from move one."]
[WhiteFideId "1707388"]
[BlackFideId "1709305"]
[WhiteElo "2126"]
[BlackElo "2136"]

1. d4 {[%clk 01:30:58]} {[%emt 00:00:02]} f5 {[%clk 01:30:53]} {[%emt
00:00:07]} 2. g3 {[%clk 01:31:19]} {[%emt 00:00:08]} Nf6 {[%clk 01:31:18]}
{[%emt 00:00:05]} 3. Bg2 {[%clk 01:31:28]} {[%emt 00:00:21]} d6 {[%clk
01:31:26]} {[%emt 00:00:22]} 4. Nf3 {[%clk 01:31:47]} {[%emt 00:00:10]} g6
{[%clk 01:31:37]} {[%emt 00:00:19]} 5. O-O {[%clk 01:31:29]} {[%emt 00:00:49]}
Bg7 {[%clk 01:32:01]} {[%emt 00:00:06]} 6. c4 {[%clk 01:30:56]} {[%emt
00:01:03]} O-O {[%clk 01:32:22]} {[%emt 00:00:09]} 7. Nc3 {[%clk 01:31:00]}
{[%emt 00:00:26]} Qe8 {[%clk 01:32:45]} {[%emt 00:15:13]} 8. Nd5 {[%clk
01:24:27]} Nxd5 9. cxd5 {[%clk 01:24:50]} h6 {[%clk 01:24:33]} {[%emt
00:01:16]} 10. Qb3 {[%clk 01:17:44]} {[%emt 00:07:36]} Qf7 {[%clk 01:09:52]}
{[%emt 00:26:06]} 11. Rd1 {[%clk 01:13:16]} Nd7 {[%clk 00:55:43]} {[%emt
00:08:41]} 12. a4 {[%clk 01:07:55]} {[%emt 00:05:51]} Nb6 {[%clk 00:48:08]}
{[%emt 00:08:06]} 13. a5 {[%clk 00:59:33]} {[%emt 00:08:52]} Nd7 {[%clk
00:42:24]} {[%emt 00:06:14]} 14. Ra3 {[%clk 00:56:19]} {[%emt 00:03:43]} Nf6
{[%clk 00:40:43]} {[%emt 00:02:11]} 15. Ne1 {[%clk 00:56:05]} {[%emt 00:00:44]}
a6 {[%clk 00:37:42]} {[%emt 00:03:32]} 16. Nd3 {[%clk 00:54:05]} {[%emt
00:02:29]} g5 {[%clk 00:37:22]} {[%emt 00:00:51]} 17. e3 {[%clk 00:54:07]}
{[%emt 00:00:29]} Rb8 {[%clk 00:35:58]} {[%emt 00:01:54]} 18. Nb4 {[%clk
00:53:50]} {[%emt 00:00:46]} Bd7 {[%clk 00:35:18]} {[%emt 00:01:11]} 19. Qc2
{[%clk 00:53:36]} {[%emt 00:00:43]} Rbc8 {[%clk 00:32:40]} {[%emt 00:03:08]} 20.
Rc3 {[%clk 00:53:37]} {[%emt 00:00:29]} Qh5 {[%clk 00:24:33]} {[%emt 00:08:37]}
21. Re1 {[%clk 00:51:02]} {[%emt 00:03:04]} Ne8 {[%clk 00:23:48]} {[%emt
00:01:16]} 22. Qd1 {[%clk 00:48:37]} {[%emt 00:02:54]} Qf7 {[%clk 00:22:11]}
{[%emt 00:02:07]} 23. Bf3 {[%clk 00:45:31]} {[%emt 00:03:36]} Bb5 {[%clk
00:18:51]} {[%emt 00:03:50]} 24. Qd2 {[%clk 00:40:44]} {[%emt 00:05:17]} Nf6
{[%clk 00:18:31]} {[%emt 00:00:50]} 25. Qc2 {[%clk 00:39:03]} {[%emt 00:02:11]}
Ne8 {[%clk 00:18:50]} {[%emt 00:00:11]} 26. Rd1 {[%clk 00:38:25]} {[%emt
00:01:08]} Kh8 {[%clk 00:17:38]} {[%emt 00:01:42]} 27. b3 {[%clk 00:35:31]}
{[%emt 00:03:25]} Bd7 {[%clk 00:17:34]} {[%emt 00:00:34]} 28. Kh1 {[%clk
00:27:19]} {[%emt 00:08:41]} e5 {[%clk 00:13:57]} {[%emt 00:04:07]} 29. dxe6
{[%clk 00:24:42]} {[%emt 00:03:07]} Bxe6 {[%clk 00:13:50]} {[%emt 00:00:38]} 30.
d5 {[%clk 00:18:17]} {[%emt 00:06:55]} Bd7 {[%clk 00:14:00]} {[%emt 00:00:20]}
31. Rcd3 {[%clk 00:18:08]} {[%emt 00:00:37]} Nf6 {[%clk 00:11:15]} {[%emt
00:03:16]} 32. Bb2 {[%clk 00:17:00]} {[%emt 00:01:37]} Ng4 {[%clk 00:11:02]}
{[%emt 00:00:44]} 33. Bxg7 {[%clk 00:16:59]} {[%emt 00:00:31]} Kxg7 {[%clk
00:11:09]} {[%emt 00:00:22]} 34. Rc3 {[%clk 00:16:50]} {[%emt 00:00:39]} Qh5
{[%clk 00:09:40]} {[%emt 00:01:59]} 35. Bxg4 {[%clk 00:16:42]} {[%emt
00:00:37]} Qxg4 {[%clk 00:09:03]} {[%emt 00:01:07]} 36. Rd4 {[%clk 00:15:24]}
{[%emt 00:01:48]} Qh3 {[%clk 00:06:01]} {[%emt 00:03:32]} 37. Kg1 {[%clk
00:15:16]} {[%emt 00:00:37]} Bb5 {[%clk 00:04:31]} {[%emt 00:02:02]} 38. Nd3
{[%clk 00:12:49]} {[%emt 00:02:56]} Rf7 {[%clk 00:04:52]} {[%emt 00:00:10]} 39.
Qc1 {[%clk 00:11:45]} {[%emt 00:01:34]} Qh5 {[%clk 00:04:03]} {[%emt 00:01:19]}
40. Kg2 {[%clk 00:10:26]} {[%emt 00:01:49]} c5 {[%clk 00:02:08]} {[%emt
00:02:25]} 41. Ne1 {[%clk 00:08:53]} {[%emt 00:02:01]} Qe2 {[%clk 00:19:45]}
{[%emt 00:12:55]} 42. Nf3 {[%clk 00:37:44]} {[%emt 00:01:38]} cxd4 {[%clk
00:18:00]} {[%emt 00:02:15]} 43. Rxc8 {[%clk 00:37:57]} {[%emt 00:00:17]} dxe3
{[%clk 00:15:28]} {[%emt 00:03:02]} 44. Rc2 {[%clk 00:37:19]} {[%emt 00:01:08]}
Qd3 {[%clk 00:14:53]} {[%emt 00:01:05]} 45. Rc3 {[%clk 00:32:26]} {[%emt
00:05:23]} Qxd5 {[%clk 00:14:25]} {[%emt 00:00:58]} 46. Qxe3 {[%clk 00:32:27]}
{[%emt 00:00:29]} Bc6 {[%clk 00:12:42]} {[%emt 00:02:13]} 47. Rd3 {[%clk
00:32:33]} {[%emt 00:00:23]} Qxa5 {[%clk 00:12:15]} {[%emt 00:00:57]} 48. Qd4+
{[%clk 00:32:17]} {[%emt 00:00:46]} Qe5 {[%clk 00:11:35]} {[%emt 00:01:10]} 49.
Kg1 {[%clk 00:31:21]} {[%emt 00:01:25]} Bxf3 {[%clk 00:10:47]} {[%emt
00:01:19]} 50. Qxe5+ {[%clk 00:31:44]} {[%emt 00:00:07]} dxe5 {[%clk 00:11:16]}
51. Rxf3 {[%clk 00:32:02]} {[%emt 00:00:11]} Kf6 {[%clk 00:09:09]} {[%emt
00:02:37]} 52. Rc3 {[%clk 00:32:06]} {[%emt 00:00:26]} Rd7 {[%clk 00:09:19]}
{[%emt 00:00:20]} 53. Kg2 {[%clk 00:31:42]} {[%emt 00:00:54]} e4 {[%clk
00:09:33]} {[%emt 00:00:17]} 54. Rc4 {[%clk 00:29:50]} {[%emt 00:02:21]} Rd3
{[%clk 00:08:56]} {[%emt 00:01:06]} 55. b4 {[%clk 00:30:11]} {[%emt 00:00:10]}
Rb3 {[%clk 00:08:59]} {[%emt 00:00:28]} 56. g4 {[%clk 00:30:29]} {[%emt
00:00:12]} Ke6 {[%clk 00:07:52]} {[%emt 00:01:37]} 57. gxf5+ {[%clk 00:30:08]}
{[%emt 00:00:50]} Kxf5 {[%clk 00:08:21]} {[%emt 00:00:01]} 58. h3 {[%clk
00:29:37]} {[%emt 00:01:01]} Kf4 {[%clk 00:08:00]} {[%emt 00:00:52]} 59. Rd4
{[%clk 00:29:26]} {[%emt 00:00:42]} Ke5 {[%clk 00:08:05]} {[%emt 00:00:25]} 60.
Rc4 {[%clk 00:29:04]} {[%emt 00:00:52]} Kd5 {[%emt 00:00:28]} 0-1

[Event "Superettan 2017/2018"]
[Site "Vegagatan 20, Gothenburg, Sweden"]
[Date "2018.02.03"]
[Round "2.16"]
[White "Subramanian, Aditya"]
[Black "Svedberg, Hans"]
[Result "1-0"]
[TimeControl "90 minutes for 40 moves + 30 minutes for the rest of the game + 30 seconds per move from move one."]
[WhiteFideId "1718924"]
[BlackFideId "1705113"]
[WhiteElo "2133"]
[BlackElo "2027"]

1. c4 {[%clk 01:30:53]} {[%emt 00:00:03]} c5 {[%clk 01:30:38]} {[%emt
00:00:25]} 2. e3 {[%clk 01:31:17]} {[%emt 00:00:06]} e5 {[%clk 01:27:49]}
{[%emt 00:03:19]} 3. Nc3 {[%clk 01:31:34]} {[%emt 00:00:13]} Nc6 {[%clk
01:27:44]} {[%emt 00:15:17]} 4. Nf3 {[%clk 01:31:50]} Nf6 {[%clk 01:26:13]} 5.
d4 {[%clk 01:31:49]} cxd4 6. exd4 {[%clk 01:31:21]} e4 {[%clk 01:21:52]} 7. Nd2
{[%clk 01:25:42]} {[%emt 00:00:32]} Bb4 {[%clk 01:19:43]} {[%emt 00:02:39]} 8.
d5 {[%clk 01:23:38]} {[%emt 00:02:35]} Bxc3 9. bxc3 {[%clk 01:22:48]} Na5
{[%clk 00:53:29]} 10. Nb3 {[%clk 01:04:36]} {[%emt 00:18:03]} O-O {[%clk
00:44:11]} {[%emt 00:09:48]} 11. Bg5 {[%clk 01:04:36]} {[%emt 00:00:30]} h6
{[%clk 00:34:11]} {[%emt 00:10:31]} 12. Bh4 {[%clk 00:59:09]} {[%emt 00:05:56]}
Nxb3 {[%clk 00:29:47]} {[%emt 00:04:54]} 13. axb3 {[%clk 00:59:13]} {[%emt
00:00:26]} d6 {[%clk 00:28:45]} {[%emt 00:01:32]} 14. Qd4 {[%clk 00:57:34]}
{[%emt 00:02:08]} b6 {[%clk 00:28:12]} {[%emt 00:01:02]} 15. Be2 {[%clk
00:57:09]} {[%emt 00:00:56]} Re8 {[%clk 00:27:36]} {[%emt 00:01:06]} 16. O-O
{[%clk 00:53:19]} {[%emt 00:04:20]} Qe7 {[%clk 00:21:23]} {[%emt 00:06:43]} 17.
Ra2 {[%clk 00:47:23]} {[%emt 00:06:26]} g5 {[%clk 00:16:18]} {[%emt 00:05:35]}
18. Bg3 {[%clk 00:47:41]} {[%emt 00:00:12]} Nd7 {[%clk 00:16:04]} {[%emt
00:00:44]} 19. f4 {[%clk 00:41:44]} {[%emt 00:06:27]} exf3 {[%clk 00:09:56]}
{[%emt 00:06:38]} 20. Bxf3 {[%clk 00:42:07]} {[%emt 00:00:07]} Ne5 {[%clk
00:08:48]} {[%emt 00:01:38]} 21. Bh5 {[%clk 00:38:06]} {[%emt 00:04:31]} Rf8
{[%clk 00:08:55]} {[%emt 00:00:23]} 22. Re2 {[%clk 00:34:33]} {[%emt 00:04:02]}
f6 {[%clk 00:09:03]} {[%emt 00:00:22]} 23. Bxe5 {[%clk 00:31:49]} {[%emt
00:03:15]} fxe5 {[%clk 00:08:28]} {[%emt 00:01:05]} 24. Qe4 {[%clk 00:32:11]}
{[%emt 00:00:08]} Rxf1+ 25. Kxf1 {[%clk 00:32:10]} {[%emt 00:00:31]} Qh7 {[%clk
00:02:41]} {[%emt 00:00:46]} 26. Bg6 {[%clk 00:27:28]} {[%emt 00:05:11]} Qh8
{[%clk 00:02:58]} {[%emt 00:00:14]} 27. Rf2 {[%clk 00:27:04]} {[%emt 00:00:53]}
Bd7 {[%clk 00:01:50]} {[%emt 00:01:38]} 28. Bf7+ {[%clk 00:27:05]} {[%emt
00:00:29]} Kf8 {[%clk 00:01:40]} {[%emt 00:00:40]} 29. Be6+ {[%clk 00:27:27]}
{[%emt 00:00:09]} Ke8 {[%clk 00:01:45]} {[%emt 00:00:25]} 30. Qg6+ {[%clk
08:17:51]} {[%emt 00:00:06]} Kd8 {[%clk 00:01:50]} {[%emt 00:00:24]} 31. Bxd7
{[%clk 00:28:05]} {[%emt 00:00:16]} 1-0

[Event "Superettan 2017/2018"]
[Site "Vegagatan 20, Gothenburg, Sweden"]
[Date "2018.02.04"]
[Round "3.1"]
[White "Hamark, Jesper"]
[Black "Rozentalis, Eduardas"]
[Result "0-1"]
[TimeControl "90 minutes for 40 moves + 30 minutes for the rest of the game + 30 seconds per move from move one."]
[BlackTitle "GM"]
[WhiteFideId "1704338"]
[BlackFideId "12800023"]
[WhiteElo "2333"]
[BlackElo "2520"]

1. c4 {[%clk 01:30:34]} {[%emt 00:00:18]} b6 {[%clk 01:29:41]} {[%emt
00:01:27]} 2. d4 {[%clk 01:26:33]} {[%emt 00:04:31]} e6 {[%clk 01:29:07]}
{[%emt 00:01:03]} 3. e4 {[%clk 01:24:27]} {[%emt 00:02:37]} Bb7 {[%clk
01:27:04]} {[%emt 00:02:33]} 4. Nc3 {[%clk 01:24:35]} {[%emt 00:00:22]} Bb4
{[%clk 01:27:00]} {[%emt 00:00:34]} 5. Qc2 {[%clk 01:23:06]} {[%emt 00:01:59]}
Bxc3+ {[%clk 01:17:18]} {[%emt 00:10:49]} 6. bxc3 {[%clk 01:22:45]} {[%emt
01:20:50]} d6 {[%clk 01:17:41]} {[%emt 00:00:02]} 7. Bd3 {[%clk 01:21:41]} Nd7
{[%clk 01:17:55]} 8. f4 {[%clk 01:11:56]} Qh4+ {[%clk 01:13:15]} 9. Kf1 {[%clk
01:00:01]} e5 {[%clk 01:10:16]} 10. Nf3 {[%clk 00:58:23]} Qe7 {[%clk 01:10:28]}
11. Kf2 {[%clk 00:44:33]} Ngf6 {[%clk 01:08:55]} 12. Re1 {[%clk 00:41:41]} O-O
{[%clk 01:08:23]} 13. Kg1 {[%clk 00:34:45]} Rfe8 {[%clk 01:04:55]} 14. fxe5
dxe5 {[%clk 01:05:07]} 15. d5 {[%clk 00:22:42]} {[%emt 00:00:37]} a5 {[%clk
00:58:30]} {[%emt 00:07:07]} 16. Kh1 {[%clk 00:22:38]} {[%emt 00:00:34]} Bc8
{[%clk 00:55:26]} {[%emt 00:03:33]} 17. Be3 {[%clk 00:20:58]} {[%emt 00:02:10]}
Nc5 {[%clk 00:54:21]} {[%emt 00:01:35]} 18. Nd2 {[%clk 00:14:49]} {[%emt
00:06:39]} Bd7 {[%clk 00:48:33]} {[%emt 00:06:17]} 19. Bg1 {[%clk 00:12:43]}
{[%emt 00:02:37]} Nh5 {[%clk 00:45:16]} {[%emt 00:03:47]} 20. Nb3 {[%clk
00:10:27]} {[%emt 00:02:46]} Ba4 {[%clk 00:34:51]} {[%emt 00:10:54]} 21. Bf1
{[%clk 00:10:23]} {[%emt 00:00:35]} Nf6 {[%clk 00:30:31]} {[%emt 00:04:50]} 22.
Qb1 {[%clk 00:10:24]} {[%emt 00:00:29]} Nfd7 {[%clk 00:27:35]} {[%emt
00:03:25]} 23. Qb2 {[%clk 00:10:51]} {[%emt 00:00:04]} Rab8 {[%clk 00:25:23]}
{[%emt 00:02:41]} 24. Rab1 {[%clk 00:10:52]} {[%emt 00:00:30]} Nb7 {[%clk
00:25:07]} {[%emt 00:00:46]} 25. Qc1 {[%clk 00:07:49]} {[%emt 00:03:34]} Red8
{[%clk 00:22:03]} {[%emt 00:03:33]} 26. Qb2 {[%clk 00:07:56]} {[%emt 00:00:24]}
Qd6 {[%clk 00:21:20]} {[%emt 00:01:12]} 27. Qc1 {[%clk 00:07:53]} {[%emt
00:00:33]} f6 {[%clk 00:20:31]} {[%emt 00:01:19]} 28. Qb2 {[%clk 00:08:18]}
{[%emt 00:00:06]} Ndc5 {[%clk 00:20:48]} {[%emt 00:00:13]} 29. Qc2 {[%clk
00:03:54]} {[%emt 00:04:54]} Be8 {[%clk 00:20:36]} {[%emt 00:00:41]} 30. Be2
{[%clk 00:03:43]} {[%emt 00:00:42]} a4 {[%clk 00:19:35]} {[%emt 00:01:31]} 31.
Nd2 {[%clk 00:02:52]} {[%emt 00:01:21]} Ra8 {[%clk 00:19:10]} {[%emt 00:00:54]}
32. Bg4 {[%clk 00:02:46]} {[%emt 00:00:37]} Qe7 {[%clk 00:17:29]} {[%emt
00:02:11]} 33. Bf3 {[%clk 00:02:57]} {[%emt 00:00:19]} Ra5 {[%clk 00:17:16]}
{[%emt 00:00:42]} 34. Bg4 {[%clk 00:02:24]} {[%emt 00:01:03]} Nd6 {[%clk
00:17:08]} {[%emt 00:00:38]} 35. Rf1 {[%clk 00:01:47]} {[%emt 00:01:07]} Bd7
{[%clk 00:12:10]} {[%emt 00:05:28]} 36. Bxd7 {[%clk 00:02:08]} {[%emt
00:00:09]} Qxd7 {[%clk 00:12:35]} {[%emt 00:00:06]} 37. Rfe1 {[%clk 00:01:14]}
{[%emt 00:01:25]} Rda8 {[%clk 00:12:04]} {[%emt 00:01:00]} 38. Rb4 {[%clk
00:01:07]} {[%emt 00:00:37]} Qe8 {[%clk 00:09:45]} {[%emt 00:02:49]} 39. Bf2
{[%clk 00:01:11]} {[%emt 00:00:27]} h6 {[%clk 00:08:40]} {[%emt 00:01:35]} 40.
Bg1 {[%clk 00:01:38]} {[%emt 00:00:03]} Na6 {[%clk 00:06:32]} {[%emt 00:02:37]}
41. Rbb1 {[%clk 00:29:41]} {[%emt 00:02:27]} Nc5 {[%clk 00:35:33]} {[%emt
00:01:29]} 42. Rb4 {[%clk 00:30:05]} {[%emt 00:00:07]} Nd7 {[%clk 00:35:54]}
{[%emt 00:00:09]} 43. Qd3 {[%clk 00:28:17]} {[%emt 00:02:18]} Qg6 {[%clk
00:36:04]} {[%emt 00:00:19]} 44. Bf2 {[%clk 00:25:51]} {[%emt 00:02:56]} Nc5
{[%clk 00:34:18]} {[%emt 00:02:16]} 45. Qc2 {[%clk 00:25:49]} {[%emt 00:00:33]}
a3 {[%clk 00:26:44]} {[%emt 00:08:05]} 46. Kg1 {[%clk 00:22:14]} {[%emt
00:04:05]} Kh7 {[%clk 00:25:09]} {[%emt 00:02:05]} 47. Kh1 {[%clk 00:21:11]}
{[%emt 00:01:34]} Rf8 {[%clk 00:23:02]} {[%emt 00:02:36]} 48. Kg1 {[%clk
00:16:50]} {[%emt 00:04:52]} Raa8 {[%clk 00:21:53]} {[%emt 00:01:39]} 49. Rbb1
{[%clk 00:13:19]} {[%emt 00:04:02]} Rae8 {[%clk 00:19:45]} {[%emt 00:02:38]} 50.
Bxc5 {[%clk 00:13:19]} {[%emt 00:00:30]} bxc5 {[%clk 00:20:12]} {[%emt
00:00:03]} 51. Qa4 {[%clk 00:11:32]} {[%emt 00:02:17]} f5 {[%clk 00:19:07]}
{[%emt 00:01:35]} 52. Qxa3 {[%clk 00:11:06]} {[%emt 00:00:56]} Ra8 {[%clk
00:16:48]} {[%emt 00:02:48]} 53. Qb3 {[%clk 00:06:34]} {[%emt 00:05:02]} fxe4
{[%clk 00:16:50]} {[%emt 00:00:28]} 54. Qc2 {[%clk 00:05:02]} {[%emt 00:02:02]}
Rf2 {[%clk 00:15:50]} {[%emt 00:01:30]} 0-1

[Event "Superettan 2017/2018"]
[Site "Vegagatan 20, Gothenburg, Sweden"]
[Date "2018.02.04"]
[Round "3.2"]
[White "Akesson, Joel"]
[Black "Svensson, Bengt"]
[Result "1/2-1/2"]
[TimeControl "90 minutes for 40 moves + 30 minutes for the rest of the game + 30 seconds per move from move one."]
[WhiteTitle "FM"]
[BlackTitle "IM"]
[WhiteFideId "1705040"]
[BlackFideId "1700200"]
[WhiteElo "2279"]
[BlackElo "2319"]

1. c4 {[%clk 01:30:58]} {[%emt 00:00:01]} c6 {[%clk 01:30:30]} {[%emt
00:00:31]} 2. Nf3 {[%clk 01:31:02]} {[%emt 00:00:25]} d5 {[%clk 01:30:46]}
{[%emt 00:00:14]} 3. d4 {[%clk 01:31:18]} {[%emt 00:00:13]} Nf6 {[%clk
01:31:02]} {[%emt 00:00:14]} 4. e3 {[%clk 01:31:28]} {[%emt 00:00:19]} a6
{[%clk 01:28:56]} {[%emt 00:02:38]} 5. Qc2 {[%clk 01:28:18]} {[%emt 00:03:38]}
Bg4 {[%clk 01:25:43]} {[%emt 00:03:44]} 6. Nbd2 {[%clk 01:28:12]} {[%emt
00:00:35]} e6 {[%clk 01:25:28]} {[%emt 00:00:47]} 7. b3 {[%clk 01:24:00]}
{[%emt 00:04:41]} Nbd7 {[%clk 01:24:57]} {[%emt 00:01:02]} 8. Bd3 {[%clk
01:23:53]} {[%emt 00:00:36]} Bd6 {[%clk 01:22:09]} {[%emt 01:27:21]} 9. Bb2
{[%clk 01:23:06]} Qb8 {[%clk 01:14:45]} {[%emt 00:00:01]} 10. O-O {[%clk
01:13:59]} Bh5 {[%clk 01:09:54]} 11. h3 {[%clk 01:01:30]} Bg6 {[%clk 01:03:14]}
12. e4 {[%clk 00:56:21]} dxe4 13. Nxe4 {[%clk 00:56:40]} Nxe4 14. Bxe4 {[%clk
00:56:59]} O-O {[%clk 00:55:13]} 15. Bxg6 {[%clk 00:47:46]} hxg6 {[%clk
00:55:11]} 16. Rfe1 {[%clk 00:47:26]} Re8 {[%clk 00:51:28]} 17. Rad1 {[%clk
00:42:36]} 1/2-1/2

[Event "Superettan 2017/2018"]
[Site "Vegagatan 20, Gothenburg, Sweden"]
[Date "2018.02.04"]
[Round "3.3"]
[White "Aberg, Anton"]
[Black "Welin, Mats"]
[Result "1/2-1/2"]
[TimeControl "90 minutes for 40 moves + 30 minutes for the rest of the game + 30 seconds per move from move one."]
[WhiteTitle "IM"]
[BlackTitle "FM"]
[WhiteFideId "1701991"]
[BlackFideId "1705180"]
[WhiteElo "2368"]
[BlackElo "2314"]

1. d4 {[%clk 01:30:51]} {[%emt 00:00:08]} Nf6 {[%clk 01:30:27]} {[%emt
00:00:33]} 2. Bg5 {[%clk 01:31:08]} {[%emt 00:00:13]} d5 {[%clk 01:30:15]}
{[%emt 00:00:42]} 3. e3 {[%clk 01:31:26]} {[%emt 00:00:13]} c5 {[%clk
01:29:48]} {[%emt 00:00:57]} 4. Nc3 {[%clk 01:26:30]} {[%emt 00:05:25]} Nc6
{[%clk 01:27:48]} {[%emt 00:02:29]} 5. Bxf6 {[%clk 01:20:26]} {[%emt 00:06:34]}
gxf6 {[%clk 01:27:02]} {[%emt 00:01:16]} 6. dxc5 {[%clk 01:17:19]} {[%emt
00:03:38]} e6 {[%clk 01:23:41]} {[%emt 00:04:28]} 7. Qh5 {[%clk 01:14:33]}
{[%emt 00:03:24]} f5 {[%clk 01:08:54]} {[%emt 00:16:15]} 8. O-O-O {[%clk
01:13:04]} {[%emt 01:00:48]} Bd7 {[%clk 01:03:08]} {[%emt 00:00:02]} 9. Nf3
{[%clk 01:04:48]} Bxc5 {[%clk 00:52:25]} 10. Nb5 {[%clk 01:00:09]} Rc8 {[%clk
00:44:29]} 11. Kb1 {[%clk 00:41:53]} a6 {[%clk 00:36:36]} {[%emt 00:06:26]} 12.
Nbd4 {[%clk 00:35:44]} {[%emt 00:06:39]} Qf6 {[%clk 00:34:06]} {[%emt
00:02:59]} 13. g3 {[%clk 00:29:33]} {[%emt 00:06:41]} Rg8 {[%clk 00:30:44]}
{[%emt 00:03:52]} 14. Be2 {[%clk 00:27:20]} {[%emt 00:02:43]} Bf8 {[%clk
00:29:04]} {[%emt 00:02:10]} 15. Qh4 {[%clk 00:14:45]} {[%emt 00:13:05]} Qg7
{[%clk 00:21:45]} {[%emt 00:07:49]} 16. Qh5 {[%clk 00:13:02]} {[%emt 00:02:14]}
Be7 {[%clk 00:19:38]} {[%emt 00:02:37]} 17. h4 {[%clk 00:08:36]} {[%emt
00:04:55]} Bf6 {[%clk 00:15:43]} {[%emt 00:04:25]} 18. c3 {[%clk 00:08:39]}
{[%emt 00:00:28]} Qg6 {[%clk 00:10:23]} {[%emt 00:05:50]} 19. Qxg6 {[%clk
00:08:19]} {[%emt 00:00:50]} hxg6 {[%clk 00:10:41]} {[%emt 00:00:11]} 20. Nxc6
{[%clk 00:05:31]} {[%emt 00:03:18]} Rxc6 {[%clk 00:10:39]} {[%emt 00:00:32]} 21.
Nd4 {[%clk 00:05:54]} {[%emt 00:00:07]} Rc7 {[%clk 00:10:50]} {[%emt 00:00:19]}
22. f4 {[%clk 00:06:18]} {[%emt 00:00:07]} 1/2-1/2